fUST/lending_fUST_20251010
["ID","MTS","AMOUNT","RATE_DAILY","PERIOD"]
[390565824,1760086248504,-900.14,0.0001726,2]
[390565825,1760086248516,-500.0,0.0001726,2]
[390565826,1760086248526,-388.48778903,0.0001726,2]
[390565827,1760086248536,-500.0,0.0001726,2]
[390565828,1760086248546,-274.31233955,0.0001726,2]
[390565829,1760086248555,-500.0,0.0001726,2]
[390565830,1760086248565,-500.0,0.0001726,2]
[390565831,1760086248574,-500.0,0.0001726,2]
[390565832,1760086248584,-569.22,0.0001726,2]
[390565833,1760086248593,-500.0,0.0001726,2]
[390565834,1760086248602,-500.0,0.0001726,2]
[390565835,1760086248612,-500.0,0.0001726,2]
[390565836,1760086248621,-500.0,0.0001726,2]
[390565837,1760086248631,-914.63,0.0001726,2]
[390565838,1760086248640,-500.0,0.0001726,2]
[390565839,1760086248650,-500.0,0.0001726,2]
[390565840,1760086248660,-500.0,0.0001726,2]
[390565841,1760086248669,-500.0,0.0001726,2]
[390565842,1760086248679,-500.0,0.0001726,2]
[390565843,1760086248689,-500.0,0.0001726,2]
[390565844,1760086248699,-1084.95,0.0001726,2]
[390565845,1760086248709,-500.0,0.0001726,2]
[390565846,1760086248718,-500.0,0.0001726,2]
[390565847,1760086248729,-500.0,0.0001726,2]
[390565848,1760086248739,-327.42377819,0.0001726,2]
[390565849,1760086248748,-977.93,0.0001726,2]
[390565850,1760086248757,-500.0,0.0001726,2]
[390565851,1760086248768,-500.0,0.0001726,2]
[390565852,1760086248777,-500.0,0.0001726,2]
[390565853,1760086248787,-500.0,0.0001726,2]
[390565854,1760086248796,-1011.91,0.0001726,2]
[390565855,1760086248805,-876.77,0.0001726,2]
[390565856,1760086248815,-500.0,0.0001726,2]
[390565857,1760086248824,-260.75187693,0.0001726,2]
[390565858,1760086248835,-500.0,0.0001726,2]
[390565859,1760086248845,-500.0,0.0001726,2]
[390565860,1760086248855,-500.0,0.0001726,2]
[390565861,1760086248864,-500.0,0.0001726,2]
[390565862,1760086248874,-151.0,0.0001726,2]
[390565863,1760086248883,-2019.47,0.0001726,2]
[390565864,1760086248893,-151.0,0.0001726,2]
[390565865,1760086248902,-500.0,0.0001726,2]
[390565866,1760086248912,-151.0,0.0001726,2]
[390565867,1760086248922,-500.0,0.0001726,2]
[390565868,1760086248931,-500.0,0.0001726,2]
[390565869,1760086248940,-151.0,0.0001726,2]
[390565870,1760086248949,-356.3752103,0.0001726,2]
[390565871,1760086248959,-500.0,0.0001726,2]
[390565872,1760086248968,-500.0,0.0001726,2]
[390565873,1760086248977,-151.0,0.0001726,2]
[390565874,1760086248987,-151.0,0.0001726,2]
[390565875,1760086248996,-151.0,0.0001726,2]
[390565876,1760086249005,-151.0,0.0001726,2]
[390565877,1760086249015,-500.0,0.0001726,2]
[390565878,1760086249024,-151.0,0.0001726,2]
[390565879,1760086249034,-151.0,0.0001726,2]
[390565880,1760086249043,-500.0,0.0001726,2]
[390565881,1760086249052,-151.0,0.0001726,2]
[390565882,1760086249062,-151.0,0.0001726,2]
[390565883,1760086249072,-921.82,0.0001726,2]
[390565884,1760086249081,-748.9,0.0001726,2]
[390565885,1760086249090,-151.0,0.0001726,2]
[390565886,1760086249099,-1162.93,0.0001726,2]
[390565887,1760086249109,-500.0,0.0001726,2]
[390565888,1760086249118,-500.0,0.0001726,2]
[390565889,1760086249127,-500.0,0.0001726,2]
[390565890,1760086249136,-151.0,0.0001726,2]
[390565891,1760086249145,-500.0,0.0001726,2]
[390565892,1760086249155,-500.0,0.0001726,2]
[390565893,1760086249164,-504.194854,0.0001726,2]
[390565894,1760086249173,-151.0,0.0001726,2]
[390565895,1760086249183,-6947.29,0.0001726,2]
[390565896,1760086249192,-500.0,0.0001726,2]
[390565897,1760086249202,-770.88,0.0001726,2]
[390565898,1760086249211,-151.0,0.0001726,2]
[390565899,1760086249221,-500.0,0.0001726,2]
[390565900,1760086249231,-151.0,0.0001726,2]
[390565901,1760086249240,-500.0,0.0001726,2]
[390565902,1760086249250,-500.0,0.0001726,2]
[390565903,1760086249260,-500.0,0.0001726,2]
[390565904,1760086249269,-500.0,0.0001726,2]
[390565905,1760086249279,-500.0,0.0001726,2]
[390565906,1760086249288,-2072.42,0.0001726,2]
[390565907,1760086249298,-500.0,0.0001726,2]
[390565908,1760086249307,-500.0,0.0001726,2]
[390565909,1760086249317,-151.0,0.0001726,2]
[390565910,1760086249327,-152.003691,0.0001726,2]
[390565911,1760086249336,-879.56,0.0001726,2]
[390565912,1760086249347,-505.37018724,0.0001726,2]
[390565913,1760086249357,-500.0,0.0001726,2]
[390565914,1760086249367,-500.0,0.0001726,2]
[390565915,1760086249376,-500.0,0.0001726,2]
[390565916,1760086249387,-2182.76,0.0001726,2]
[390565917,1760086249514,-500.0,0.0001726,2]
[390565918,1760086249542,-500.0,0.0001726,2]
[390565919,1760086249552,-3235.43,0.0001726,2]
[390565920,1760086249561,-500.0,0.0001726,2]
[390565921,1760086249571,-6211.09,0.0001726,2]
[390565922,1760086249581,-500.0,0.0001726,2]
[390565923,1760086249590,-500.0,0.0001726,2]
[390565924,1760086249599,-500.0,0.0001726,2]
[390565925,1760086249608,-500.0,0.0001726,2]
[390565926,1760086249617,-500.0,0.0001726,2]
[390565927,1760086249626,-500.0,0.0001726,2]
[390565928,1760086249635,-335.48160139,0.0001726,2]
[390565929,1760086249645,-500.0,0.0001726,2]
[390565930,1760086249654,-479.28879186,0.0001726,2]
[390565931,1760086249663,-500.0,0.0001726,2]
[390565932,1760086249672,-500.0,0.0001726,2]
[390565933,1760086249681,-500.0,0.0001726,2]
[390565934,1760086249693,-864.2,0.0001726,2]
[390565935,1760086249702,-500.0,0.0001726,2]
[390565936,1760086249712,-6104.8,0.0001726,2]
[390565937,1760086249721,-500.0,0.0001726,2]
[390565938,1760086249730,-926.29,0.0001726,2]
[390565939,1760086249739,-500.0,0.0001726,2]
[390565940,1760086249748,-500.0,0.0001726,2]
[390565941,1760086249757,-503.73633333,0.0001726,2]
[390565942,1760086249767,-500.0,0.0001726,2]
[390565943,1760086249776,-500.0,0.0001726,2]
[390565944,1760086249785,-500.0,0.0001726,2]
[390565945,1760086249794,-151.859235,0.0001726,2]
[390565946,1760086249803,-724.11,0.0001726,2]
[390565947,1760086249813,-747.05,0.0001726,2]
[390565948,1760086249822,-240.10402428,0.0001726,2]
[390565949,1760086249831,-500.0,0.0001726,2]
[390565950,1760086249840,-153.16741,0.0001726,2]
[390565951,1760086249849,-602.08488313,0.0001726,2]
[390565952,1760086249858,-487.17684428,0.0001726,2]
[390565953,1760086249867,-500.0,0.0001726,2]
[390565954,1760086249879,-151.0,0.0001726,2]
[390565955,1760086249889,-500.0,0.0001726,2]
[390565956,1760086249898,-964.12,0.0001726,2]
[390565957,1760086249908,-500.0,0.0001726,2]
[390565958,1760086249917,-500.0,0.0001726,2]
[390565959,1760086249926,-500.0,0.0001726,2]
[390565960,1760086249936,-1350.41,0.0001726,2]
[390565961,1760086249945,-1366.33,0.0001726,2]
[390565962,1760086249953,-500.0,0.0001726,2]
[390565963,1760086249962,-938.39,0.0001726,2]
[390565964,1760086249971,-500.0,0.0001726,2]
[390565965,1760086249980,-151.0,0.0001726,2]
[390565966,1760086249990,-1480.98,0.0001726,2]
[390565967,1760086249999,-500.0,0.0001726,2]
[390565968,1760086250008,-151.0,0.0001726,2]
[390565969,1760086250017,-500.0,0.0001726,2]
[390565970,1760086250026,-500.0,0.0001726,2]
[390565971,1760086250035,-151.0,0.0001726,2]
[390565972,1760086250045,-2734.03,0.0001726,2]
[390565973,1760086250055,-500.0,0.0001726,2]
[390565974,1760086250065,-500.0,0.0001726,2]
[390565975,1760086250075,-4100.27,0.0001726,2]
[390565976,1760086250084,-500.0,0.0001726,2]
[390565977,1760086250092,-500.0,0.0001726,2]
[390565978,1760086250102,-4333.01,0.0001726,2]
[390565979,1760086250111,-500.0,0.0001726,2]
[390565980,1760086250120,-500.0,0.0001726,2]
[390565981,1760086250130,-500.0,0.0001726,2]
[390565982,1760086250139,-500.0,0.0001726,2]
[390565983,1760086250147,-734.73,0.0001726,2]
[390565984,1760086250156,-500.0,0.0001726,2]
[390565985,1760086250165,-500.0,0.0001726,2]
[390565986,1760086250174,-553.99,0.0001726,2]
[390565987,1760086250183,-500.0,0.0001726,2]
[390565988,1760086250193,-626.14,0.0001726,2]
[390565989,1760086250202,-940.36,0.0001726,2]
[390565990,1760086250212,-500.0,0.0001726,2]
[390565991,1760086250221,-500.0,0.0001726,2]
[390565992,1760086250231,-500.0,0.0001726,2]
[390565993,1760086250240,-806.97,0.0001726,2]
[390565994,1760086250250,-500.0,0.0001726,2]
[390565995,1760086250259,-609.99,0.0001726,2]
[390565996,1760086250270,-500.0,0.0001726,2]
[390565997,1760086250279,-1039.02,0.0001726,2]
[390565998,1760086250288,-500.0,0.0001726,2]
[390565999,1760086250297,-1510.17,0.0001726,2]
[390566000,1760086250306,-500.0,0.0001726,2]
[390566001,1760086250316,-5670.56,0.0001726,2]
[390566002,1760086250325,-2062.52,0.0001726,2]
[390566003,1760086250334,-523.83,0.0001726,2]
[390566004,1760086250343,-500.0,0.0001726,2]
[390566005,1760086250353,-500.0,0.0001726,2]
[390566006,1760086250363,-500.0,0.0001726,2]
[390566007,1760086250372,-500.0,0.0001726,2]
[390566008,1760086250382,-740.71,0.0001726,2]
[390566009,1760086250391,-500.0,0.0001726,2]
[390566010,1760086250401,-500.0,0.0001726,2]
[390566011,1760086250411,-565.37,0.0001726,2]
[390566012,1760086250419,-500.0,0.0001726,2]
[390566013,1760086250429,-500.0,0.0001726,2]
[390566014,1760086250439,-2341.16,0.0001726,2]
[390566015,1760086250448,-500.0,0.0001726,2]
[390566016,1760086250458,-500.0,0.0001726,2]
[390566017,1760086250469,-500.0,0.0001726,2]
[390566018,1760086250479,-721.86,0.0001726,2]
[390566019,1760086250488,-577.08,0.0001726,2]
[390566020,1760086250497,-500.0,0.0001726,2]
[390566021,1760086250506,-1278.0,0.0001726,2]
[390566022,1760086250518,-500.0,0.0001726,2]
[390566023,1760086250527,-500.0,0.0001726,2]
[390566024,1760086250537,-930.64,0.0001726,2]
[390566025,1760086250547,-2586.95,0.0001726,2]
[390566026,1760086250557,-500.0,0.0001726,2]
[390566027,1760086250570,-956.12,0.0001726,2]
[390566028,1760086250580,-592.67,0.0001726,2]
[390566029,1760086250591,-1343.6,0.0001726,2]
[390566030,1760086250602,-945.78,0.0001726,2]
[390566031,1760086250612,-151.0,0.0001726,2]
[390566032,1760086250622,-503.41532337,0.0001726,2]
[390566033,1760086250631,-232.335434,0.0001726,2]
[390566034,1760086250641,-151.0,0.0001726,2]
[390566035,1760086250650,-500.0,0.0001726,2]
[390566036,1760086250659,-998.22,0.0001726,2]
[390566037,1760086250668,-500.0,0.0001726,2]
[390566038,1760086250678,-500.0,0.0001726,2]
[390566039,1760086250687,-2152.12,0.0001726,2]
[390566040,1760086250697,-151.0,0.0001726,2]
[390566041,1760086250706,-154.856397,0.0001726,2]
[390566042,1760086250715,-500.0,0.0001726,2]
[390566043,1760086250725,-151.0,0.0001726,2]
[390566044,1760086250735,-151.0,0.0001726,2]
[390566045,1760086250745,-500.0,0.0001726,2]
[390566046,1760086250754,-565.15,0.0001726,2]
[390566047,1760086250764,-151.0,0.0001726,2]
[390566048,1760086250774,-640.41,0.0001726,2]
[390566049,1760086250784,-151.0,0.0001726,2]
[390566050,1760086250793,-151.0,0.0001726,2]
[390566051,1760086250803,-158.605407,0.0001726,2]
[390566052,1760086250812,-500.0,0.0001726,2]
[390566053,1760086250822,-503.19870999,0.0001726,2]
[390566054,1760086250832,-500.0,0.0001726,2]
[390566055,1760086250841,-151.0,0.0001726,2]
[390566056,1760086250850,-151.0,0.0001726,2]
[390566057,1760086250859,-151.0,0.0001726,2]
[390566058,1760086250869,-151.0,0.0001726,2]
[390566059,1760086250879,-300.0,0.0001726,2]
[390566060,1760086250889,-2096.83,0.0001726,2]
[390566061,1760086250898,-500.0,0.0001726,2]
[390566062,1760086250908,-3322.26,0.0001726,2]
[390566063,1760086250918,-921.09,0.0001726,2]
[390566064,1760086250927,-617.32,0.0001726,2]
[390566065,1760086250937,-500.0,0.0001726,2]
[390566066,1760086250948,-173.963947,0.0001726,2]
[390566067,1760086250958,-500.0,0.0001726,2]
[390566068,1760086250968,-500.0,0.0001726,2]
[390566069,1760086250978,-173.963947,0.0001726,2]
[390566070,1760086250988,-154.80812956,0.0001726,2]
[390566071,1760086250998,-173.963947,0.0001726,2]
[390566072,1760086251008,-500.0,0.0001726,2]
[390566073,1760086251018,-173.963947,0.0001726,2]
[390566074,1760086251027,-1209.18,0.0001726,2]
[390566075,1760086251037,-500.0,0.0001726,2]
[390566076,1760086251050,-1737.9,0.0001726,2]
[390566077,1760086251060,-651.29,0.0001726,2]
[390566078,1760086251071,-500.0,0.0001726,2]
[390566079,1760086251079,-500.0,0.0001726,2]
[390566080,1760086251090,-500.0,0.0001726,2]
[390566081,1760086251102,-215.65387175,0.0001726,2]
[390566082,1760086251112,-1090.09,0.0001726,2]
[390566083,1760086251123,-500.0,0.0001726,2]
[390566084,1760086251132,-500.0,0.0001726,2]
[390566085,1760086251142,-500.0,0.0001726,2]
[390566086,1760086251152,-280.75037418,0.000173,2]
[390566087,1760086251161,-168.10077244,0.00017301,2]
[390566088,1760086251171,-272.90988032,0.00017322,2]
[390566089,1760086251183,-981.732,0.0001733,2]
[390566090,1760086251192,-2159.0,0.0001733,2]
[390566091,1760086251201,-630.0,0.0001733,2]
[390566092,1760086251211,-320.003172,0.0001733,2]
[390566093,1760086251221,-320.003172,0.0001733,2]
[390566094,1760086251230,-153.139071,0.0001733,2]
[390566095,1760086251240,-320.003172,0.0001733,2]
[390566096,1760086251249,-320.003172,0.0001733,2]
[390566097,1760086251258,-562.695234,0.0001733,2]
[390566098,1760086251268,-562.695234,0.0001733,2]
[390566099,1760086251278,-562.695234,0.0001733,2]
[390566100,1760086251288,-562.695234,0.0001733,2]
[390566101,1760086251297,-154.141836,0.0001733,2]
[390566102,1760086251306,-4195.0,0.0001733,2]
[390566103,1760086251315,-150.0,0.0001733,2]
[390566104,1760086251324,-297.6412454,0.00017419,2]
[390566105,1760086251335,-153.167096,0.00017419,2]
[390566106,1760086251345,-315.4867425,0.00017419,2]
[390566107,1760086251355,-500.0,0.00017434,2]
[390566108,1760086251364,-501.05544168,0.00017438,2]
[390566109,1760086251374,-500.0,0.00017438,2]
[390566110,1760086251383,-500.0,0.00017438,2]
[390566111,1760086251398,-500.0,0.00017438,2]
[390566112,1760086251408,-500.0,0.00017438,2]
[390566113,1760086251418,-500.0,0.00017438,2]
[390566114,1760086251428,-500.0,0.00017438,2]
[390566115,1760086251441,-500.0,0.00017438,2]
[390566116,1760086251450,-157.30324439,0.00017438,2]
[390566117,1760086251460,-500.0,0.00017438,2]
[390566118,1760086251469,-500.0,0.00017438,2]
[390566119,1760086251479,-500.0,0.00017438,2]
[390566120,1760086251488,-500.0,0.00017438,2]
[390566121,1760086251498,-500.0,0.00017438,2]
[390566122,1760086251508,-500.0,0.00017438,2]
[390566123,1760086251519,-500.0,0.00017438,2]
[390566124,1760086251529,-500.0,0.00017438,2]
[390566125,1760086251538,-500.0,0.00017438,2]
[390566126,1760086251547,-500.0,0.00017438,2]
[390566127,1760086251556,-161.86847584,0.00017438,2]
[390566128,1760086251565,-500.0,0.00017438,2]
[390566129,1760086251574,-500.0,0.00017438,2]
[390566130,1760086251584,-500.86991837,0.00017438,2]
[390566131,1760086251593,-500.0,0.00017438,2]
[390566132,1760086251603,-214.21809975,0.00017461,2]
[390566133,1760086251612,-500.0,0.00017461,2]
[390566134,1760086251621,-505.45386967,0.00017461,2]
[390566135,1760086251630,-500.54606732,0.00017461,2]
[390566136,1760086251639,-500.0,0.00017461,2]
[390566137,1760086251649,-2884.6027821,0.00017496,2]
[390566138,1760086251658,-8053.9741763,0.00017496,2]
[390566139,1760086251667,-613.0713795,0.00017496,2]
[390566140,1760086251676,-460.33177214,0.00017499,2]
[390566141,1760086251685,-280.75037418,0.000175,2]
[390566142,1760086251694,-5888.0,0.00017504,2]
[390566143,1760086251703,-500.0,0.00017512,2]
[390566144,1760086251712,-500.0,0.00017512,2]
[390566145,1760086251721,-500.0,0.00017512,2]
[390566146,1760086251730,-500.0,0.00017512,2]
[390566147,1760086251739,-500.0,0.00017512,2]
[390566148,1760086251748,-627.54677909,0.00017512,2]
[390566149,1760086251757,-500.53836085,0.00017512,2]
[390566150,1760086251766,-500.0,0.00017512,2]
[390566151,1760086251776,-500.0,0.00017512,2]
[390566152,1760086251785,-500.0,0.00017517,2]
[390566153,1760086251794,-500.0,0.00017517,2]
[390566154,1760086251803,-227.02438496,0.00017528,2]
[390566155,1760086251812,-500.0,0.00017534,2]
[390566156,1760086251821,-500.0,0.00017534,2]
[390566157,1760086251830,-500.0,0.00017534,2]
[390566158,1760086251839,-477.05064695,0.00017534,2]
[390566159,1760086251849,-941.18,0.00017534,2]
[390566160,1760086251860,-500.0,0.00017534,2]
[390566161,1760086251869,-900.14,0.00017534,2]
[390566162,1760086251879,-365.56170626,0.00017534,2]
[390566163,1760086251888,-500.0,0.00017534,2]
[390566164,1760086251898,-500.0,0.00017534,2]
[390566165,1760086251907,-503.73678477,0.00017534,2]
[390566166,1760086251917,-569.22,0.00017534,2]
[390566167,1760086251926,-538.49870538,0.00017534,2]
[390566168,1760086251936,-500.0,0.00017534,2]
[390566169,1760086251945,-629.52294604,0.00017534,2]
[390566170,1760086251955,-461.63971521,0.00017534,2]
[390566171,1760086251965,-914.63,0.00017534,2]
[390566172,1760086251973,-500.0,0.00017534,2]
[390566173,1760086251983,-370.34795207,0.00017534,2]
[390566174,1760086251992,-500.0,0.00017534,2]
[390566175,1760086252002,-500.0,0.00017534,2]
[390566176,1760086252012,-151.0,0.00017534,2]
[390566177,1760086252023,-151.0,0.00017534,2]
[390566178,1760086252032,-500.0,0.00017534,2]
[390566179,1760086252041,-151.0,0.00017534,2]
[390566180,1760086252050,-151.0,0.00017534,2]
[390566181,1760086252059,-151.0,0.00017534,2]
[390566182,1760086252069,-155.628286,0.00017534,2]
[390566183,1760086252078,-500.0,0.00017534,2]
[390566184,1760086252088,-151.0,0.00017534,2]
[390566185,1760086252097,-1084.95,0.00017534,2]
[390566186,1760086252107,-151.0,0.00017534,2]
[390566187,1760086252116,-500.0,0.00017534,2]
[390566188,1760086252125,-500.0,0.00017534,2]
[390566189,1760086252135,-500.0,0.00017534,2]
[390566190,1760086252144,-977.93,0.00017534,2]
[390566191,1760086252154,-500.0,0.00017534,2]
[390566192,1760086252163,-500.0,0.00017534,2]
[390566193,1760086252172,-151.0,0.00017534,2]
[390566194,1760086252182,-500.0,0.00017534,2]
[390566195,1760086252191,-151.0,0.00017534,2]
[390566196,1760086252201,-151.0,0.00017534,2]
[390566197,1760086252211,-479.06103417,0.00017534,2]
[390566198,1760086252220,-151.0,0.00017534,2]
[390566199,1760086252229,-279.947969,0.00017534,2]
[390566200,1760086252240,-151.0,0.00017534,2]
[390566201,1760086252249,-1011.91,0.00017534,2]
[390566202,1760086252259,-876.77,0.00017534,2]
[390566203,1760086252268,-500.0,0.00017534,2]
[390566204,1760086252278,-500.0,0.00017534,2]
[390566205,1760086252287,-153.062202,0.00017534,2]
[390566206,1760086252296,-500.0,0.00017534,2]
[390566207,1760086252306,-500.0,0.00017534,2]
[390566208,1760086252315,-227.8891446,0.00017534,2]
[390566209,1760086252324,-2019.47,0.00017534,2]
[390566210,1760086252337,-500.0,0.00017534,2]
[390566211,1760086252347,-184.03435143,0.00017534,2]
[390566212,1760086252356,-500.0,0.00017534,2]
[390566213,1760086252366,-500.0,0.00017534,2]
[390566214,1760086252380,-500.0,0.00017534,2]
[390566215,1760086252390,-151.0,0.00017534,2]
[390566216,1760086252399,-189.113488,0.00017534,2]
[390566217,1760086252409,-500.0,0.00017534,2]
[390566218,1760086252419,-151.0,0.00017534,2]
[390566219,1760086252428,-151.0,0.00017534,2]
[390566220,1760086252441,-500.0,0.00017534,2]
[390566221,1760086252450,-151.0,0.00017534,2]
[390566222,1760086252462,-151.0,0.00017534,2]
[390566223,1760086252471,-921.82,0.00017534,2]
[390566224,1760086252482,-748.9,0.00017534,2]
[390566225,1760086252491,-155.037749,0.00017534,2]
[390566226,1760086252500,-1162.93,0.00017534,2]
[390566227,1760086252509,-500.0,0.00017534,2]
[390566228,1760086252520,-500.0,0.00017534,2]
[390566229,1760086252530,-500.0,0.00017534,2]
[390566230,1760086252539,-151.0,0.00017534,2]
[390566231,1760086252548,-500.0,0.00017534,2]
[390566232,1760086252557,-500.0,0.00017534,2]
[390566233,1760086252566,-151.0,0.00017534,2]
[390566234,1760086252575,-6947.29,0.00017534,2]
[390566235,1760086252584,-500.0,0.00017534,2]
[390566236,1760086252593,-770.88,0.00017534,2]
[390566237,1760086252602,-500.0,0.00017534,2]
[390566238,1760086252611,-151.0,0.00017534,2]
[390566239,1760086252620,-151.0,0.00017534,2]
[390566240,1760086252629,-500.0,0.00017534,2]
[390566241,1760086252638,-500.0,0.00017534,2]
[390566242,1760086252647,-500.0,0.00017534,2]
[390566243,1760086252656,-414.37445842,0.00017534,2]
[390566244,1760086252666,-2072.42,0.00017534,2]
[390566245,1760086252675,-500.0,0.00017534,2]
[390566246,1760086252684,-500.0,0.00017534,2]
[390566247,1760086252693,-261.392589,0.00017534,2]
[390566248,1760086252702,-879.56,0.00017534,2]
[390566249,1760086252711,-502.63951751,0.00017534,2]
[390566250,1760086252720,-500.0,0.00017534,2]
[390566251,1760086252729,-500.0,0.00017534,2]
[390566252,1760086252738,-2182.76,0.00017534,2]
[390566253,1760086252747,-500.0,0.00017534,2]
[390566254,1760086252757,-500.0,0.00017534,2]
[390566255,1760086252767,-3235.43,0.00017534,2]
[390566256,1760086252908,-500.0,0.00017534,2]
[390566257,1760086252918,-6211.09,0.00017534,2]
[390566258,1760086252927,-500.0,0.00017534,2]
[390566259,1760086252937,-500.0,0.00017534,2]
[390566260,1760086252946,-500.0,0.00017534,2]
[390566261,1760086252956,-500.0,0.00017534,2]
[390566262,1760086252965,-500.0,0.00017534,2]
[390566263,1760086252974,-500.0,0.00017534,2]
[390566264,1760086252983,-500.0,0.00017534,2]
[390566265,1760086252994,-500.0,0.00017534,2]
[390566266,1760086253003,-488.9120231,0.00017534,2]
[390566267,1760086253012,-500.0,0.00017534,2]
[390566268,1760086253021,-864.2,0.00017534,2]
[390566269,1760086253031,-500.0,0.00017534,2]
[390566270,1760086253040,-6104.8,0.00017534,2]
[390566271,1760086253050,-500.0,0.00017534,2]
[390566272,1760086253059,-926.29,0.00017534,2]
[390566273,1760086253069,-500.0,0.00017534,2]
[390566274,1760086253078,-500.0,0.00017534,2]
[390566275,1760086253088,-500.0,0.00017534,2]
[390566276,1760086253098,-500.0,0.00017534,2]
[390566277,1760086253113,-500.0,0.00017534,2]
[390566278,1760086253122,-724.11,0.00017534,2]
[390566279,1760086253132,-747.05,0.00017534,2]
[390566280,1760086253142,-500.0,0.00017534,2]
[390566281,1760086253151,-408.99000757,0.00017534,2]
[390566282,1760086253160,-244.097566,0.00017534,2]
[390566283,1760086253169,-500.0,0.00017534,2]
[390566284,1760086253179,-964.12,0.00017534,2]
[390566285,1760086253189,-523.93930145,0.00017534,2]
[390566286,1760086253198,-426.17318788,0.00017534,2]
[390566287,1760086253207,-500.0,0.00017534,2]
[390566288,1760086253217,-1350.41,0.00017534,2]
[390566289,1760086253227,-1366.33,0.00017534,2]
[390566290,1760086253243,-500.0,0.00017534,2]
[390566291,1760086253260,-938.39,0.00017534,2]
[390566292,1760086253272,-500.0,0.00017534,2]
[390566293,1760086253282,-151.0,0.00017534,2]
[390566294,1760086253292,-1480.98,0.00017534,2]
[390566295,1760086253302,-500.0,0.00017534,2]
[390566296,1760086253311,-151.0,0.00017534,2]
[390566297,1760086253321,-500.0,0.00017534,2]
[390566298,1760086253330,-500.0,0.00017534,2]
[390566299,1760086253340,-151.0,0.00017534,2]
[390566300,1760086253350,-2734.03,0.00017534,2]
[390566301,1760086253360,-500.0,0.00017534,2]
[390566302,1760086253370,-500.0,0.00017534,2]
[390566303,1760086253380,-4100.27,0.00017534,2]
[390566304,1760086253390,-636.81915855,0.00017534,2]
[390566305,1760086253400,-4333.01,0.00017534,2]
[390566306,1760086253409,-497.8664528,0.00017534,2]
[390566307,1760086253419,-500.0,0.00017534,2]
[390566308,1760086253429,-500.0,0.00017534,2]
[390566309,1760086253442,-500.0,0.00017534,2]
[390566310,1760086253451,-734.73,0.00017534,2]
[390566311,1760086253460,-500.0,0.00017534,2]
[390566312,1760086253470,-504.79543064,0.00017534,2]
[390566313,1760086253479,-553.99,0.00017534,2]
[390566314,1760086253489,-500.0,0.00017534,2]
[390566315,1760086253499,-626.14,0.00017534,2]
[390566316,1760086253508,-940.36,0.00017534,2]
[390566317,1760086253519,-500.0,0.00017534,2]
[390566318,1760086253529,-500.0,0.00017534,2]
[390566319,1760086253538,-806.97,0.00017534,2]
[390566320,1760086253547,-500.0,0.00017534,2]
[390566321,1760086253557,-609.99,0.00017534,2]
[390566322,1760086253566,-504.57473362,0.00017534,2]
[390566323,1760086253576,-1039.02,0.00017534,2]